bitfinex-derivatives/quotes_SOLF0:USTF0_20240908
["timestamp","ask_amount","ask_price","bid_price","bid_amount"]
[1725834808159,30.78,130.87,130.78,0.2]
[1725834808357,3.0584,130.79,130.78,0.2]
[1725834808659,3.79626518,130.84,130.78,0.2]
[1725834808961,3.0582,130.8,130.78,0.2]
[1725834809255,1.0,130.81,130.78,0.2]
[1725834809670,3.0584,130.79,130.78,0.2]
[1725834809958,30.78,130.8,130.71,0.2]
[1725834810159,1.0,130.81,130.71,0.2]
[1725834810160,3.0601,130.72,130.71,0.2]
[1725834813270,3.0601,130.72,130.71,0.0056]
[1725834814777,2.57453351,130.72,130.71,0.0056]
[1725834815472,33.35453351,130.72,130.71,0.0056]
[1725834815669,33.35453351,130.72,130.65,0.2]
[1725834815670,3.0615,130.66,130.65,0.2]
[1725834815868,2.83178437,130.66,130.65,0.2]
[1725834816678,3.0613,130.67,130.65,0.2]
[1725834816876,30.78,130.72,130.65,0.2]
[1725834817182,30.78,130.7,130.65,0.2]
[1725834817384,3.0615,130.66,130.65,0.2]
[1725834821081,30.78,130.72,130.65,0.2]
[1725834821280,0.28147967,130.71,130.65,0.2]
[1725834821488,30.78,130.76,130.65,30.98]
[1725834821710,3.0607,130.7,130.65,30.98]
[1725834821981,1.0,130.75,130.67,30.78]
[1725834822186,30.78,130.74,130.66,2.6618]
[1725834822376,30.78,130.72,130.65,0.2]
[1725834822684,3.0615,130.66,130.65,0.2]
[1725834823390,3.90978819,130.68,130.65,0.2]
[1725834823680,30.78,130.67,130.65,0.2]
[1725834823881,3.0615,130.66,130.65,0.2]
[1725834825282,30.78,130.71,130.65,0.2]
[1725834825283,3.0613,130.67,130.65,0.2]
[1725834825485,188.17210066,130.75,130.65,0.2]
[1725834825677,30.78,130.72,130.65,0.2]
[1725834825878,3.0615,130.66,130.65,0.2]
[1725834828978,3.0613,130.67,130.65,0.2]
[1725834829183,30.78,130.72,130.65,0.2]
[1725834829379,30.78,130.7,130.65,0.2]
[1725834829579,3.0615,130.66,130.65,0.2]
[1725834829791,30.78,130.72,130.65,0.2]
[1725834829990,0.28148124,130.71,130.65,0.2]
[1725834830294,3.0615,130.66,130.65,0.2]
[1725834830488,30.78,130.72,130.65,0.2]
[1725834830889,0.28145485,130.71,130.65,0.2]
[1725834831097,30.78,130.69,130.65,0.2]
[1725834831285,3.0615,130.66,130.65,0.2]
[1725834831590,4.16386876,130.66,130.58,0.2]
[1725834831899,30.78,130.69,130.58,0.2]
[1725834832093,0.28153907,130.68,130.58,3.2632]
[1725834832287,3.0621,130.64,130.58,3.2632]
[1725834832594,3.74712819,130.67,130.58,0.2]
[1725834832895,3.0621,130.64,130.58,3.2633]
[1725834833193,30.78,130.69,130.58,0.2]
[1725834833397,3.0621,130.64,130.58,0.2]
[1725834833892,1.0,130.66,130.58,0.2]
[1725834834281,3.83646112,130.65,130.58,0.2]
[1725834834488,3.0631,130.59,130.58,0.2]
[1725834835500,30.78,130.63,130.58,0.2]
[1725834835501,3.0629,130.61,130.58,0.2]
[1725834835791,1.0,130.64,130.58,0.2]
[1725834836095,3.0631,130.59,130.58,0.2]
[1725834837195,1.0,130.6,130.58,0.2]
[1725834837690,4.063,130.6,130.58,0.2]
[1725834837890,30.78,130.67,130.58,0.2]
[1725834838293,3.0623,130.63,130.58,0.2]
[1725834838686,1.0,130.66,130.58,0.2]
[1725834838891,3.0625,130.62,130.58,0.2]
[1725834840087,3.0627,130.61,130.58,0.2]
[1725834840392,30.78,130.67,130.58,0.2]
[1725834840393,30.78,130.65,130.58,0.2]
[1725834841200,30.78,130.63,130.58,0.2]
[1725834841402,30.78,130.61,130.58,0.2]
[1725834841591,3.0645,130.53,130.52,0.2]
[1725834841794,30.78,130.59,130.52,0.2]
[1725834841997,34.57998161,130.59,130.52,0.2]
[1725834842198,3.0645,130.53,130.52,0.2]
[1725834842705,30.78,130.59,130.52,0.2]
[1725834842902,30.78,130.63,130.52,0.2]
[1725834843091,226.0,130.65,130.54,30.78]
[1725834843297,3.0627,130.61,130.54,30.78]
[1725834843703,3.0631,130.6,130.54,30.78]
[1725834844092,30.78,130.66,130.54,30.78]
[1725834844408,30.78,130.63,130.52,34.0447]
[1725834844707,3.0641,130.55,130.52,0.2]
[1725834844911,3.81503333,130.6,130.52,0.2]
[1725834845106,30.78,130.61,130.52,0.2]
[1725834845402,30.78,130.59,130.52,0.2]
[1725834845806,3.0636,130.58,130.52,0.2]
[1725834846106,34.57281281,130.61,130.52,0.2]
[1725834846304,0.28168976,130.6,130.52,0.2]
[1725834846500,3.0638,130.57,130.52,0.2]
[1725834847108,30.78,130.65,130.52,30.98]
[1725834847310,0.28166048,130.64,130.54,3.0642]
[1725834847508,0.28166048,130.64,130.52,30.98]
[1725834847702,3.0628,130.61,130.52,30.98]
[1725834847905,30.78,130.65,130.52,30.98]
[1725834848204,3.0627,130.61,130.52,30.98]
[1725834848406,256.78,130.66,130.52,30.98]
[1725834848601,0.28161672,130.65,130.52,30.98]
[1725834849602,0.28161672,130.65,130.53,3.0644]
[1725834850414,0.28161672,130.65,130.52,30.98]
[1725834850713,30.78,130.64,130.52,30.98]
[1725834850918,30.78,130.61,130.52,0.2]
[1725834851216,30.78,130.64,130.52,30.98]
[1725834851397,30.78,130.69,130.57,30.78]
[1725834851598,30.78,130.69,130.58,2.6233]
[1725834851599,3.0617,130.65,130.58,2.6233]
[1725834851803,30.78,130.71,130.59,30.78]
[1725834852011,0.28153072,130.7,130.6,3.0628]
[1725834852217,3.0614,130.67,130.6,3.0628]
[1725834852519,30.78,130.73,130.59,30.78]
[1725834852719,3.0612,130.68,130.59,30.78]
[1725834853015,30.78,130.69,130.58,2.6233]
[1725834853215,30.78,130.71,130.59,30.78]
[1725834853412,30.78,130.72,130.59,30.78]
[1725834853616,0.2814666,130.71,130.59,30.78]
[1725834853815,30.78,130.7,130.58,2.6233]
[1725834854014,210.99210066,130.75,130.58,2.6233]
[1725834854015,30.78,130.67,130.58,2.6233]
[1725834854316,3.8049447,130.66,130.58,2.6233]
[1725834854514,30.78,130.67,130.58,2.6233]
[1725834854819,34.59451834,130.67,130.58,2.6233]
[1725834855004,3.0623,130.63,130.58,2.6233]
[1725834855201,30.78,130.67,130.58,2.6233]
[1725834855411,3.0621,130.64,130.58,2.6233]
[1725834855909,3.74214167,130.68,130.59,30.78]
[1725834856106,3.74214167,130.68,130.62,30.78]
[1725834856613,3.0611,130.68,130.62,33.8422]
[1725834856912,3.0611,130.68,130.62,30.78]
[1725834857116,3.0608,130.69,130.62,30.78]
[1725834857309,188.17210066,130.75,130.64,30.78]
[1725834857511,0.28140764,130.74,130.64,30.78]
[1725834857710,30.78,130.68,130.58,2.6233]
[1725834858116,3.0613,130.67,130.59,30.78]
[1725834858322,30.78,130.72,130.61,30.78]
[1725834859423,30.78,130.7,130.58,33.4033]
[1725834859616,0.28149872,130.69,130.58,2.6233]
[1725834859823,30.78,130.68,130.58,2.6233]
[1725834860114,30.78,130.65,130.58,2.6233]
[1725834860320,30.78,130.63,130.55,1.3577]
[1725834860914,3.0633,130.59,130.55,1.3577]
[1725834861112,30.78,130.63,130.55,1.3577]
[1725834862010,3.0631,130.6,130.55,1.3577]
[1725834862508,30.78,130.63,130.55,1.3577]
[1725834863121,3.0633,130.59,130.55,1.3577]
[1725834863325,30.78,130.63,130.55,1.3577]
[1725834863513,0.28162926,130.62,130.55,1.3577]
[1725834863920,30.78,130.63,130.55,1.3577]
[1725834864124,3.0633,130.59,130.55,1.3577]
[1725834864511,30.78,130.63,130.55,1.3577]
[1725834864715,0.28163216,130.62,130.55,1.3577]
[1725834865628,30.78,130.63,130.55,1.3577]
[1725834865919,0.28161196,130.62,130.53,1.3868]
[1725834866422,30.78,130.59,130.53,1.3868]
[1725834866629,0.28161196,130.58,130.53,1.3868]
[1725834866816,34.56025846,130.61,130.53,1.3868]
[1725834867127,30.78,130.63,130.53,1.3868]
[1725834867423,0.28164753,130.62,130.54,30.78]
[1725834867815,0.28164753,130.64,130.56,30.78]
[1725834868014,3.0628,130.61,130.54,30.78]
[1725834868222,30.78,130.63,130.53,1.3868]
[1725834868425,0.28162164,130.62,130.53,1.3868]
[1725834868626,3.0634,130.58,130.53,1.3868]
[1725834868921,34.57405083,130.61,130.53,1.3868]
[1725834869125,0.28164667,130.6,130.53,1.3868]
[1725834870021,30.78,130.59,130.53,1.3868]
[1725834870218,3.0643,130.55,130.52,0.2]
[1725834870421,30.78,130.59,130.52,0.2]
[1725834870613,0.2817004,130.58,130.52,0.2]
[1725834871527,3.0645,130.54,130.52,0.2]
[1725834871728,30.78,130.59,130.52,0.2]
[1725834872032,30.78,130.56,130.52,0.2]
[1725834872325,3.0645,130.53,130.52,0.2]
[1725834873724,7.14814998,130.53,130.52,0.2]
[1725834874119,3.3463102,130.53,130.52,0.2]
[1725834874426,30.78,130.56,130.52,0.2]
[1725834874816,3.0645,130.53,130.52,0.2]
[1725834877732,3.80788101,130.54,130.45,0.2]
[1725834877916,30.78,130.54,130.45,0.2]
[1725834878120,0.28180663,130.53,130.45,0.2]
[1725834878317,3.0657,130.49,130.45,0.2]
[1725834878524,34.6024471,130.54,130.45,0.2]
[1725834878721,0.28181132,130.53,130.45,0.2]
[1725834879632,3.0654,130.5,130.45,0.2]
[1725834880035,34.6024471,130.54,130.45,0.2]
[1725834880333,0.28181132,130.53,130.45,0.2]
[1725834880538,30.78,130.52,130.45,0.2]
[1725834880828,0.28185011,130.51,130.45,0.2]
[1725834881832,34.6024471,130.54,130.45,0.2]
[1725834882031,0.28181889,130.53,130.45,0.2]
[1725834882642,30.78,130.48,130.45,0.2]
[1725834883129,30.78,130.5,130.45,0.2]
[1725834883327,3.0662,130.46,130.45,0.2]
[1725834883520,6.88837621,130.46,130.45,0.2]
[1725834884133,3.0673,130.42,130.39,0.2]
[1725834884631,25.78,130.44,130.39,0.2]
[1725834885138,25.78,130.47,130.39,0.2]
[1725834885338,0.28196543,130.46,130.39,0.2]
[1725834885735,4.11641064,130.46,130.39,0.2]
[1725834885937,3.83444521,130.46,130.39,0.2]
[1725834886440,3.0667,130.44,130.39,0.2]
[1725834887136,30.93,130.5,130.39,0.2]
[1725834887333,0.28193573,130.49,130.39,0.2]
[1725834887535,3.0662,130.46,130.39,3.2678]
[1725834887735,3.0662,130.46,130.39,0.2]
[1725834887941,30.93,130.5,130.39,0.2]
[1725834888141,3.0664,130.46,130.39,3.2676]
[1725834888439,3.77406981,130.47,130.39,0.2]
[1725834888640,30.93,130.5,130.39,0.2]
[1725834888839,0.28193812,130.49,130.39,0.2]
[1725834889034,3.0662,130.46,130.39,0.2]
[1725834889739,3.0664,130.45,130.39,0.2]
[1725834890940,3.0664,130.45,130.39,3.2678]
[1725834892138,3.87819709,130.47,130.39,0.2]
[1725834892339,0.28194087,130.46,130.39,0.2]
[1725834892534,30.93,130.45,130.39,0.2]
[1725834893239,3.79219085,130.44,130.39,0.2]
[1725834893743,3.0673,130.42,130.39,0.2]
[1725834895144,30.93,130.48,130.39,0.2]
[1725834895444,0.28193956,130.47,130.39,0.2]
[1725834895631,3.82470157,130.46,130.39,0.2]
[1725834896032,30.93,130.48,130.39,0.2]
[1725834896232,3.0668,130.44,130.39,3.2676]
[1725834896941,30.93,130.52,130.4,30.93]
[1725834897247,0.28188547,130.51,130.41,3.84886969]
[1725834897434,0.28188547,130.51,130.42,3.0671]
[1725834897435,3.0661,130.47,130.42,3.0671]
[1725834898241,3.0665,130.45,130.41,5.13066969]
[1725834898430,34.70291273,130.5,130.41,1.2818]
[1725834898740,0.28189169,130.49,130.41,1.2818]
[1725834898941,3.0663,130.46,130.41,4.349]
[1725834899145,3.75152542,130.48,130.41,1.2818]
[1725834899454,30.93,130.5,130.41,1.2818]
[1725834899745,0.28190677,130.49,130.41,1.2818]
[1725834900537,0.28190677,130.49,130.39,0.2]
[1725834900735,30.93,130.46,130.39,0.2]
[1725834900931,3.0673,130.42,130.39,0.2]
[1725834901139,3.84125832,130.43,130.39,0.2]
[1725834901452,34.74594904,130.5,130.39,0.2]
[1725834901645,8.00765483,130.62,130.43,30.93]
[1725834901852,0.28185089,130.56,130.47,3.0658]
[1725834902044,0.28185089,130.56,130.47,30.93]
[1725834902349,0.28185089,130.55,130.47,30.93]
[1725834902550,3.90755109,130.58,130.47,30.93]
[1725834902848,30.93,130.6,130.45,1.3602]
[1725834902849,31.21173931,130.57,130.45,32.2902]
[1725834903058,30.93,130.54,130.44,2.5904]
[1725834903353,3.0657,130.49,130.44,2.5904]
[1725834903537,30.93,130.48,130.4,1.3602]
[1725834903737,30.93,130.48,130.39,0.2]
[1725834904267,0.406,130.61,130.44,30.93]
[1725834904549,30.93,130.49,130.39,0.2]
[1725834904854,34.8594024,130.49,130.39,0.2]
[1725834905243,30.93,130.47,130.39,0.2]
[1725834905645,30.93,130.43,130.39,0.2]
[1725834905841,3.0676,130.4,130.39,0.2]
[1725834906952,25.79,130.47,130.39,0.2]
[1725834906953,25.79,130.44,130.39,0.2]
[1725834907148,29.64258475,130.44,130.39,0.2]
[1725834907350,25.79,130.44,130.39,0.2]
[1725834907542,3.0671,130.42,130.39,0.2]
[1725834907743,29.63338088,130.44,130.39,0.2]
[1725834907952,0.2820321,130.43,130.32,0.2]
[1725834908254,25.79,130.39,130.32,0.2]
[1725834908450,25.79,130.39,130.33,3.0692]
[1725834908646,25.79,130.39,130.32,0.2]
[1725834909449,3.0681,130.38,130.32,0.2]
[1725834909649,25.79,130.37,130.32,0.2]
[1725834910756,3.069,130.35,130.32,0.2]
[1725834910963,25.79,130.35,130.32,0.2]
[1725834911554,3.0692,130.33,130.32,0.2]
[1725834911767,25.79,130.35,130.32,0.2]
[1725834912456,25.79,130.35,130.26,0.2]
[1725834912958,25.79,130.35,130.26,25.99]
[1725834913154,25.79,130.37,130.28,25.79]
[1725834913460,3.0691,130.34,130.26,25.99]
[1725834914356,25.79,130.35,130.26,0.2]
[1725834914662,25.79,130.4,130.26,0.2]
[1725834914663,25.79,130.33,130.26,0.2]
[1725834915452,3.0697,130.31,130.26,0.2]
[1725834915852,29.54499078,130.33,130.26,0.2]
[1725834916052,25.79,130.33,130.26,0.2]
[1725834916262,29.63597665,130.33,130.26,0.2]
[1725834916453,25.79,130.31,130.26,0.2]
[1725834916862,29.64864557,130.31,130.26,0.2]
[1725834917957,3.0702,130.3,130.26,0.2]
[1725834918155,29.64864557,130.31,130.26,0.2]
[1725834918665,28.8606,130.27,130.26,0.2]
[1725834919150,28.8604,130.29,130.26,0.2]
[1725834919357,3.85864557,130.31,130.26,0.2]
[1725834919549,25.79,130.33,130.26,0.2]
[1725834919859,0.28227682,130.32,130.26,0.2]
[1725834920054,25.79,130.29,130.26,0.2]
[1725834920862,28.8606,130.27,130.26,0.2]
[1725834922060,3.8360215,130.33,130.26,0.2]
[1725834922357,25.79,130.31,130.26,0.2]
[1725834922561,0.28227398,130.3,130.26,0.2]
[1725834922762,3.85188599,130.3,130.26,0.2]
[1725834923067,25.79,130.34,130.26,0.2]
[1725834923261,0.28226064,130.33,130.26,0.2]
[1725834923660,3.0704,130.28,130.26,0.2]
[1725834924361,3.0702,130.29,130.26,0.2]
[1725834924755,3.0704,130.28,130.26,0.2]
[1725834925265,25.79,130.29,130.26,0.2]
[1725834926153,29.69681416,130.34,130.26,0.2]
[1725834926154,25.79,130.31,130.26,0.2]
[1725834926655,3.0706,130.28,130.26,0.2]
[1725834927359,3.0706,130.27,130.26,0.2]
[1725834928056,25.79,130.29,130.26,0.2]
[1725834928261,25.79,130.3,130.26,0.2]
[1725834928466,3.0704,130.29,130.26,0.2]
[1725834928964,25.79,130.3,130.26,0.2]
[1725834929159,3.0702,130.29,130.26,0.2]
[1725834929359,25.79,130.32,130.26,0.2]
[1725834929863,25.79,130.31,130.26,0.2]
[1725834930269,3.0706,130.28,130.26,0.2]
[1725834930768,25.79,130.31,130.26,0.2]
[1725834931762,3.0706,130.27,130.26,0.2]
[1725834932267,3.90681416,130.34,130.26,0.2]
[1725834932470,3.0702,130.3,130.26,0.2]
[1725834932771,25.79,130.3,130.26,0.2]
[1725834932968,29.68508184,130.3,130.26,0.2]
[1725834933872,3.89508184,130.3,130.26,0.2]
[1725834934065,25.79,130.27,130.26,0.2]
[1725834934259,25.79,130.27,130.19,1.5007]
[1725834934574,3.7546967,130.26,130.19,1.5007]
[1725834934773,25.79,130.28,130.19,1.5007]
[1725834935269,3.0705,130.28,130.2,25.79]
[1725834935464,25.79,130.3,130.2,25.79]
[1725834936175,3.0706,130.28,130.22,3.0717]
[1725834936471,3.0706,130.28,130.19,1.5007]
[1725834936472,25.79,130.28,130.19,1.5007]
[1725834936974,25.79,130.3,130.2,25.79]
[1725834937362,3.0707,130.27,130.22,3.0717]
[1725834937558,3.0707,130.27,130.2,25.79]
[1725834937765,29.68575971,130.28,130.19,1.5007]
[1725834937964,25.79,130.3,130.2,25.79]
[1725834938175,3.86618528,130.32,130.24,25.79]
[1725834938366,25.79,130.34,130.24,25.79]
[1725834938561,226.0,130.41,130.28,3.0703]
[1725834938562,0.2822035,130.33,130.28,3.0703]
[1725834938876,3.87117836,130.35,130.26,25.79]
[1725834939079,25.79,130.37,130.28,25.79]
[1725834939280,25.79,130.37,130.27,1.387]
[1725834939569,26.07215825,130.36,130.27,1.387]
[1725834939777,25.79,130.36,130.27,1.387]
[1725834941265,25.79,130.36,130.27,5.15110965]
[1725834941476,25.79,130.38,130.28,25.79]
[1725834942676,3.0682,130.38,130.32,3.0693]
[1725834943482,3.0683,130.37,130.32,3.0693]
[1725834944178,3.0681,130.38,130.32,3.0693]
[1725834944581,3.0681,130.38,130.33,3.0692]
[1725834944876,28.8578,130.4,130.33,3.0692]
[1725834945084,25.79,130.4,130.33,3.0692]
[1725834945676,3.068,130.39,130.33,3.0692]
[1725834947284,29.65080811,130.42,130.32,3.0694]
[1725834947285,3.0681,130.38,130.32,3.0694]
[1725834947482,3.0681,130.38,130.3,25.79]
[1725834947781,3.0681,130.38,130.32,3.0694]
[1725834948178,3.0683,130.37,130.32,3.0694]
[1725834948972,25.79,130.42,130.33,3.0692]
[1725834949174,0.28207317,130.41,130.3,25.79]
[1725834949480,3.0682,130.38,130.32,3.0694]
[1725834950079,3.87674038,130.37,130.28,25.79]
[1725834950285,23.01,130.46,130.27,1.387]
[1725834950286,25.79,130.35,130.27,1.387]
[1725834950485,3.0696,130.32,130.27,1.387]
[1725834950676,25.79,130.35,130.27,4.4575]
[1725834951185,3.0694,130.33,130.27,4.4575]
[1725834951685,3.0694,130.33,130.28,3.0704]
[1725834952484,3.0694,130.33,130.29,3.0701]
[1725834952684,3.0688,130.35,130.28,25.79]
[1725834953079,3.78559384,130.36,130.27,1.387]
[1725834953277,25.79,130.35,130.27,1.387]
[1725834953482,3.75258217,130.36,130.27,5.16222971]
[1725834953678,3.0692,130.34,130.29,3.0701]
[1725834953873,29.65381333,130.37,130.27,5.16222971]
[1725834954475,25.79,130.31,130.27,1.387]
[1725834954678,25.79,130.32,130.27,1.387]
[1725834954891,29.64037732,130.34,130.27,1.387]
[1725834955082,25.79,130.36,130.27,1.387]
[1725834955283,25.79,130.34,130.27,1.387]
[1725834955485,25.79,130.3,130.2,3.86810569]
[1725834955685,25.79,130.3,130.21,1.3216]
[1725834955989,29.62655742,130.3,130.21,2.7076]
[1725834956287,29.6822209,130.3,130.21,2.7076]
[1725834957189,25.79,130.28,130.21,2.7076]
[1725834957499,25.79,130.26,130.21,2.7076]
[1725834957878,3.0714,130.24,130.19,0.2]
[1725834960192,3.0714,130.24,130.19,3.2725]
[1725834960394,29.67022433,130.28,130.19,25.99]
[1725834960589,25.79,130.3,130.2,25.79]
[1725834960795,3.0713,130.25,130.2,25.79]
[1725834961089,25.79,130.3,130.19,25.99]
[1725834961090,25.79,130.28,130.19,25.99]
[1725834961290,0.28234374,130.27,130.19,25.99]
[1725834961489,3.80377996,130.26,130.19,25.99]
[1725834961889,25.79,130.24,130.19,0.2]
[1725834962084,0.2824215,130.23,130.19,0.2]
[1725834962387,3.0723,130.2,130.19,0.2]
[1725834963499,25.79,130.27,130.19,0.2]
[1725834963500,3.0721,130.21,130.19,0.2]
[1725834963889,3.0713,130.25,130.19,0.2]
[1725834964089,3.0713,130.25,130.12,3.85648503]
[1725834964090,23.01,130.19,129.99,0.2]
[1725834964292,23.01,130.19,130.05,25.79]
[1725834964293,3.81263449,130.19,130.05,25.79]
[1725834964489,26.07265032,130.18,130.07,25.79]
[1725834964688,25.79,130.18,130.08,1.3435]
[1725834964897,0.2,130.28,130.09,25.79]
[1725834965198,0.2,130.28,130.08,1.3435]
[1725834965199,25.79,130.12,130.06,1.2734]
[1725834965387,25.79,130.1,130.03,3.0763]
[1725834965801,29.71368582,130.1,130.01,4.0004]
[1725834965990,3.92368582,130.1,130.01,4.0004]
[1725834966189,25.79,130.08,130.01,4.0004]
[1725834966593,25.79,130.11,130.01,4.0004]
[1725834966800,25.79,130.14,130.01,4.0004]
[1725834966801,25.79,130.13,130.01,4.0004]
[1725834967194,25.79,130.13,130.05,3.0756]
[1725834967495,25.79,130.13,130.01,4.0004]
[1725834967695,25.79,130.13,130.06,3.0755]
[1725834968089,25.79,130.13,130.01,4.0004]
[1725834968286,152.11506619,130.2,130.02,25.79]
[1725834968486,25.79,130.12,130.02,25.79]
[1725834968692,25.79,130.1,130.01,4.0004]
[1725834969287,152.11506619,130.2,130.01,4.0004]
[1725834969288,152.11506619,130.2,130.03,25.79]
[1725834969488,25.79,130.13,130.03,25.79]
[1725834969695,29.59443145,130.13,130.03,25.79]
[1725834970100,25.79,130.13,130.03,25.79]
[1725834970700,25.79,130.13,130.06,3.0756]
[1725834970997,25.79,130.13,130.03,25.79]
[1725834971204,25.79,130.13,130.07,3.0752]
[1725834971396,25.79,130.13,130.03,25.79]
[1725834971903,25.79,130.13,130.08,3.0749]
[1725834972088,25.79,130.13,130.03,25.79]
[1725834972602,25.79,130.13,130.08,3.0751]
[1725834972797,152.11506619,130.2,130.05,25.79]
[1725834973001,152.11506619,130.2,130.09,25.79]
[1725834973301,152.11506619,130.2,130.1,6.53750036]
[1725834973511,152.11506619,130.2,130.13,3.0739]
[1725834974306,25.79,130.21,130.1,6.53750036]
[1725834974608,25.79,130.14,129.94,231.1567]
[1725834974902,25.79,130.14,130.04,25.79]
[1725834975294,25.79,130.14,130.09,3.0748]
[1725834975496,25.79,130.14,130.04,25.79]
[1725834975694,251.79,130.21,130.08,25.79]
[1725834975695,226.0,130.21,130.08,25.79]
[1725834975902,0.28256894,130.2,130.1,25.79]
[1725834976106,25.79,130.19,130.09,4.1075]
[1725834976303,28.8627,130.19,130.09,4.1075]
[1725834976505,25.79,130.19,130.09,4.1075]
[1725834976802,25.79,130.22,130.09,4.1075]
[1725834977004,4.13186342,130.21,130.12,25.79]
[1725834977201,25.79,130.22,130.12,25.79]
[1725834977202,0.28251619,130.2,130.12,25.79]
[1725834977398,25.79,130.22,130.12,25.79]
[1725834977600,25.79,130.24,130.12,25.79]
[1725834977799,0.28244615,130.23,130.12,25.79]
[1725834978000,3.35404615,130.23,130.17,3.0728]
[1725834978203,25.79,130.24,130.17,3.0728]
[1725834978404,3.35415437,130.23,130.17,3.0728]
[1725834978711,25.79,130.24,130.17,3.0728]
[1725834978903,0.28243931,130.23,130.17,3.0728]
[1725834979210,25.79,130.26,130.18,3.0727]
[1725834979510,25.79,130.26,130.13,25.79]
[1725834979511,0.28242738,130.25,130.13,25.79]
[1725834979809,0.28242628,130.24,130.17,3.0728]
[1725834980012,3.0716,130.24,130.13,25.79]
[1725834980503,25.79,130.26,130.13,25.79]
[1725834980707,0.28242664,130.25,130.16,25.79]
[1725834980909,25.79,130.24,130.14,25.79]
[1725834981306,25.79,130.24,130.17,3.0728]
[1725834981501,25.79,130.24,130.14,25.79]
[1725834981908,28.8614,130.24,130.17,3.073]
[1725834982209,28.8614,130.24,130.14,25.79]
[1725834982400,28.8614,130.24,130.17,3.0728]
[1725834982605,3.0716,130.23,130.17,3.0728]
[1725834982902,25.79,130.24,130.17,3.0728]
[1725834983507,25.79,130.24,130.15,3.0733]
[1725834983715,0.28242411,130.23,130.15,3.0733]
[1725834983906,25.79,130.22,130.15,3.0733]
[1725834984102,3.0721,130.21,130.15,3.0733]
[1725834984406,3.0721,130.21,130.16,3.0732]
[1725834984602,25.79,130.22,130.16,3.0732]
[1725834984908,29.58476837,130.27,130.16,25.79]
[1725834985210,25.79,130.23,130.09,4.1075]
[1725834985407,25.79,130.23,130.11,25.79]
[1725834986003,3.0723,130.2,130.14,3.0735]
[1725834986211,3.93176417,130.19,130.11,25.79]
[1725834986416,25.79,130.2,130.11,25.79]
[1725834986615,3.0724,130.2,130.11,25.79]
[1725834986821,3.76075107,130.2,130.11,25.79]
[1725834987012,25.79,130.23,130.14,3.0735]
[1725834987312,29.58476837,130.27,130.11,25.79]
[1725834987313,25.79,130.2,130.11,25.79]
[1725834987508,29.72483857,130.2,130.11,25.79]
[1725834989107,3.79476837,130.27,130.09,4.1075]
[1725834989406,25.79,130.25,130.13,25.79]